[Event "FIDE WTC-KO 202"]
[Site "Jerusalem"]
[Date "2022.11.24"]
[Round "5.1"]
[White "Vakhidov, Jakhongir"]
[Black "Sasikiran, Krishnan"]
[Result "1/2-1/2"]
[ECO "A20"]
[WhiteElo "2507"]
[BlackElo "2577"]
[Annotator "TA"]
[PlyCount "114"]
[EventDate "2022.11.20"]
[EventType "team-tourn"]
[EventCountry "ISR"]
[SourceTitle "playchess.com"]
[Source "ChessBase"]
[SourceQuality "1"]
[TimeControl "2700+10"]

{[%evp 9,114,16,20,16,18,8,10,10,10,0,2,0,0,17,2,20,22,12,37,49,58,52,68,75,90,74,77,30,77,45,53,20,54,24,33,0,17,12,7,0,0,-14,-25,-46,-6,-22,0,0,10,-10,57,58,80,-35,91,93,97,76,73,76,93,91,188,135,370,386,384,250,234,76,104,106,95,80,478,427,431,274,250,93,85,80,87,94,83,35,90,55,43,29,172,127,136,131,125,112,156,146,206,24,24,24,28,0,0,0,0]} 1. c4 {[%emt 0:00:08]} e5 {[%emt 0:00:03]} 2. g3 {[%emt 0:00:07]} c6 {[%emt 0:00:07]} 3. Nf3 {[%emt 0:00:54]} e4 {[%emt 0:00:22]} 4. Nd4 {[%emt 0:00:04]} d5 {[%emt 0:00:08]} 5. cxd5 {[%emt 0:00:03]} Qxd5 {[%emt 0:00:06]} 6. Nc2 {[%emt 0:00:05][%cal Bd4c2,Bc2e1,Be1d3,Bd3f4][%mdl 32] A20: English Opening: 1...e5.} Nf6 {[%emt 0:00:16]} 7. Nc3 {[%emt 0:00:04]} Qe5 {[%emt 0:00:14]} 8. Bg2 {[%emt 0:00:02]} Na6 {[%emt 0:00:26]} 9. O-O {[%emt 0:00:39]} Be7 {[%emt 0:00:20]} 10. Ne1 {[%emt 0:01:31]} O-O {[%emt 0:06:44]} 11. d4 {[%emt 0:00:43]} exd3 {[%emt 0:01:20]} 12. Nxd3 {[%emt 0:00:02] [#]} Qa5 $146 {[%emt 0:01:55]} ({Predecessor:} 12... Qh5 13. e4 Rd8 14. Qxh5 Nxh5 15. Rd1 Be6 16. Be3 Nf6 17. Nf4 Ng4 18. Rxd8+ Bxd8 19. Nxe6 fxe6 {½-½ (44) Yakubboev,N (2656)-Najer,E (2676) Poikovsky 2022}) 13. Bd2 {[%emt 0:03:00]} Qd8 {[%emt 0:05:22]} 14. Qc2 {[%emt 0:01:05]} Bf5 {[%emt 0:05:15]} 15. e4 {[%emt 0:02:13]} Be6 {[%emt 0:00:02]} 16. Rfd1 {[%emt 0:02:52]} Qc8 {[%emt 0:01:37]} 17. Nf4 {[%emt 0:03:15]} Rd8 {[%emt 0:01:05]} 18. Rac1 {[%emt 0:03:53]} (18. Nce2 $16) 18... Bc5 {[%emt 0:07:47]} (18... Nb4 $11 19. Qa4 Nd3) 19. a3 {[%emt 0:02:24]} Bg4 {[%emt 0:01:57]} 20. Re1 {[%emt 0:01:04]} Qd7 {[%emt 0:02:21]} 21. Nb1 {[%emt 0:01:40]} (21. Be3 {simplifies} Bxe3 22. Rxe3 Nc7 23. h3) 21... Nh5 {[%emt 0:01:25]} (21... Qd4 $2 22. Be3 Qd6 23. Bxc5 $18) 22. b4 {[%emt 0:09:40]} Bb6 {[%emt 0:00:56]} 23. Nxh5 {[%emt 0:01:46]} Bxh5 {[%emt 0:00:02]} 24. Bc3 {[%emt 0:00:02]} Nc7 {[%emt 0:01:03]} 25. Qb2 {[%emt 0:01:52]} Ne6 {[%emt 0:02:30]} 26. Kh1 {[%emt 0:05:16]} f6 {[%emt 0:02:08]} 27. a4 {[%emt 0:01:56]} a6 {[%emt 0:01:22]} (27... a5 $5 {[%cal Ra5b4]}) 28. Na3 {[%emt 0:01:09]} Ng5 {[%emt 0:01:38]} 29. f4 {[%emt 0:00:47]} Nh3 {[%emt 0:00:32]} (29... Nf3 $11 30. Rf1 Qd3) 30. Rf1 $1 $14 {[%emt 0:00:03]} Bg4 {[%emt 0:00:09]} 31. e5 {[%emt 0:00:12]} ({White should play} 31. Nc4 $16 Bd4 32. e5) 31... fxe5 {[%emt 0:00:45] [#]} (31... Qf7 $1 $15 {keeps the upper hand.}) 32. Nc4 $1 $16 {[%emt 0:00:01]} Bd4 {[%emt 0:00:11]} 33. Nxe5 {[%emt 0:01:26]} (33. fxe5 $6 Bxc3 34. Qxc3 (34. Rxc3 Rf8 $11) 34... Qd4 $11) 33... Bxe5 {[%emt 0:00:01]} 34. Bxe5 {[%emt 0:00:01][%cal Of4f5]} h5 {[%emt 0:00:15]} 35. f5 {[%emt 0:00:23] White is more active.} Re8 {[%emt 0:00:21]} (35... Qd2 $16) 36. f6 $36 {[%emt 0:00:06][%mdl 2048] White is on the roll.} gxf6 {[%emt 0:00:05]} (36... Ng5 $16) 37. Rxf6 {[%emt 0:00:03]} Re6 {[%emt 0:00:02]} 38. Qa2 {[%emt 0:00:39] Strongly threatening Rcf1.} Rf8 {[%emt 0:00:11] Hoping for ...Rfxf6.} 39. Rxf8+ {[%emt 0:00:17]} (39. Rh6 $18 {and the rest is easy. Threatening mate with Rh8+.} Rf2 40. Qc4 (40. Rh8+ Kf7 $11) 40... Rxg2 41. Rh8+ Kf7 42. Rh7+ (42. Kxg2 $2 Qd2+) 42... Ke8 43. Rxd7) 39... Kxf8 $16 {[%emt 0:00:01]} 40. Rf1+ {[%emt 0:00:01]} Ke8 {[%emt 0:00:11]} 41. b5 {[%emt 0:00:04]} Ng5 $2 {[%emt 0:00:11][%mdl 8192]} (41... cxb5 $16 42. Bb8 (42. Qa3 Qe7 $15) 42... Be2 43. Bxh3 Bc4) 42. bxc6 {[%emt 0:00:06]} bxc6 {[%emt 0:00:02] [#]} 43. Qb3 $1 {[%emt 0:00:12] Threatens to win with Qb8+.} Nf7 {[%emt 0:00:11]} 44. Qb8+ {[%emt 0:00:12]} (44. Bg7 $18) 44... Qd8 {[%emt 0:00:12]} 45. Qxd8+ {[%emt 0:00:19]} ({And not} 45. Qb4 Rxe5 46. Bxc6+ Bd7 $15) 45... Nxd8 {[%emt 0:00:02]} 46. Bf4 {[%emt 0:00:05]} Re2 {[%emt 0:00:27]} 47. h3 {[%emt 0:00:03]} ({Better is} 47. Bg5 $16) 47... Be6 {[%emt 0:00:01]} (47... Bf5 $1 $14) 48. Kg1 {[%emt 0:00:27]} Ra2 {[%emt 0:00:24]} 49. Re1 {[%emt 0:00:04] Bg5 is the strong threat.} Kf7 {[%emt 0:00:15]} (49... Kd7 $11 {and Black stays safe.}) 50. Rd1 {[%emt 0:00:09]} Nb7 {[%emt 0:00:04][%cal Ob7a5]} 51. Bxc6 {[%emt 0:00:06]} Nc5 {[%emt 0:00:01]} 52. Rf1 {[%emt 0:00:12]} Kg6 {[%emt 0:00:14]} 53. Be3 {[%emt 0:00:06] A strong pair of Bishops.} Rc2 {[%emt 0:00:22]} (53... Nb3 $16 54. Be8+ Kg7) 54. Rc1 $2 {[%emt 0:00:16]} (54. Be8+ $18 Kg7 55. Bxh5) 54... Rxc1+ $11 {[%emt 0:00:05]} 55. Bxc1 {[%emt 0:00:00]} Bxh3 {[%emt 0:00:05]} 56. Be3 {[%emt 0:00:01]} Bd7 $1 {[%emt 0:00:04]} 57. Bxc5 {[%emt 0:00:01]} Bxc6 {[%emt 0:00:01] Weighted Error Value: White=0.39/Black=0.32} 1/2-1/2

[Event "FIDE WTC-KO 202"]
[Site "Jerusalem"]
[Date "2022.11.24"]
[Round "5.1"]
[White "Bai, Jinshi"]
[Black "Shirov, Alexei"]
[Result "1-0"]
[ECO "D11"]
[WhiteElo "2498"]
[BlackElo "2590"]
[Annotator "TA"]
[PlyCount "73"]
[EventDate "2022.11.20"]
[EventType "team-tourn"]
[EventCountry "ISR"]
[SourceTitle "playchess.com"]
[Source "ChessBase"]
[SourceQuality "1"]
[TimeControl "2700+10"]

{[%evp 12,73,41,41,68,62,69,70,60,64,77,64,68,64,79,84,96,76,130,104,160,140,131,141,237,243,239,195,231,195,195,98,95,93,102,89,143,141,136,91,102,101,174,175,177,117,114,114,120,120,119,109,183,181,320,318,308,308,612,450,929,920,2308,1986]} 1. d4 {[%emt 0:00:04]} d5 {[%emt 0:00:02]} 2. c4 {[%emt 0:00:02]} c6 {[%emt 0:00:02]} 3. Nf3 {[%emt 0:00:03]} Nf6 {[%emt 0:00:02]} 4. Qc2 {[%emt 0:00:02]} g6 {[%emt 0:01:40]} 5. Bf4 {[%emt 0:00:07]} Na6 {[%emt 0:00:35]} 6. e3 {[%emt 0:00:06]} Bf5 {[%emt 0:00:07]} 7. Qb3 $1 {[%emt 0:00:04]} Nb4 {[%emt 0:00:02] D11: Slav Defence: 3 Nf3 sidelines and 3...Nf6 4 e3 Bg4.} 8. Qxb4 {[%emt 0:00:05]} e5 $1 {[%emt 0:00:01]} 9. Qxb7 {[%emt 0:00:05]} Rb8 {[%emt 0:00:02] White is slightly better.} 10. Qxc6+ {[%emt 0:00:02]} Bd7 {[%emt 0:00:02]} 11. Qa6 {[%emt 0:00:01]} exf4 {[%emt 0:00:06]} 12. Nc3 {[%emt 0:00:09]} (12. Qxa7 fxe3 13. fxe3 Bb4+ 14. Nc3 O-O $19) 12... fxe3 {[%emt 0:01:15]} 13. fxe3 {[%emt 0:00:04] [#]} (13. Qxa7 $2 Rxb2 14. O-O-O Rxf2 $19) 13... Bh6 $146 {[%emt 0:00:42] Hoping for ...0-0.} ({Predecessor:} 13... Qe7 14. Be2 Bh6 15. O-O O-O 16. Rae1 Rxb2 17. Nd1 Bc8 18. Qa5 Rb6 19. c5 Re6 {½-½ (49) Salzmann,S (2354)-Perina,G (2320) ICCF email 2020}) 14. Qa3 $1 {[%emt 0:00:55]} (14. Nxd5 Nxd5 15. cxd5 O-O $17) (14. cxd5 O-O 15. e4 (15. Qxa7 Re8 $19) 15... Rxb2 $17) 14... Bxe3 {[%emt 0:02:01]} ({Black should play} 14... a5) 15. Ke2 $1 $16 {[%emt 0:00:03]} (15. Nxd5 $6 Nxd5 16. cxd5 Qe7 $14) (15. cxd5 Qb6 $11) 15... Bf4 {[%emt 0:01:49]} 16. Re1 $1 {[%emt 0:00:12]} (16. Qxa7 $2 Qe7+ 17. Kd1 Rxb2 18. Qa8+ (18. Nxd5 $2 Nxd5 19. Qa8+ Rb8 $19) 18... Rb8 $19) (16. Nxd5 Nxd5 17. cxd5 Qf6 $11) (16. g3 $6 Bh6 $16) 16... Be6 {[%emt 0:03:27]} 17. Kd1 {[%emt 0:00:20]} (17. Qxa7 $2 Rxb2+ 18. Kd1 O-O $19) 17... dxc4 {[%emt 0:03:38]} (17... a5 $16 {might work better.}) 18. Bxc4 $18 {[%emt 0:01:12]} (18. Qxa7 $2 O-O 19. Rxe6 fxe6 20. Bxc4 Rxb2 $19) (18. g3 Bd6 19. Qa4+ Kf8 20. Rxe6 fxe6 $11) 18... Qe7 {[%emt 0:00:17]} 19. Qxe7+ {[%emt 0:16:47]} Kxe7 {[%emt 0:00:02]} 20. g3 {[%emt 0:02:46]} Bh6 {[%emt 0:05:33]} 21. Re2 {[%emt 0:03:01]} (21. b3 $1 $18) 21... Rhc8 $16 {[%emt 0:01:42] Inhibits d5.} 22. Bxe6 {[%emt 0:00:33]} fxe6 {[%emt 0:00:04]} 23. Rhe1 {[%emt 0:00:38]} Kf7 {[%emt 0:03:22]} (23... Kf8 $142) 24. Kc2 {[%emt 0:01:45]} (24. Rxe6 Rxb2 $15) 24... Nd5 {[%emt 0:00:43]} 25. Ne5+ {[%emt 0:03:23]} (25. Rxe6 $6 Nb4+ 26. Kd1 Nd3 27. Ne5+ (27. Re7+ Kg8 $15) 27... Kxe6 $11) 25... Kg8 {[%emt 0:00:01]} 26. a3 $1 {[%emt 0:06:06]} Rc7 {[%emt 0:03:08] Prevents Nd7.} (26... Bg7 $16) 27. Kd3 $18 {[%emt 0:01:48]} Bf8 {[%emt 0:01:57] [#]} 28. Rc1 {[%emt 0:01:51]} ({Better is} 28. Rc2 $1 $18) 28... Bg7 $16 {[%emt 0:03:25]} 29. Rcc2 {[%emt 0:03:14] aiming for Nxd5.} Rb3 {[%emt 0:01:24] [#]} 30. Nc4 $1 $36 {[%emt 0:02:00][%mdl 2048] White is in control.} Rd7 {[%emt 0:00:09][%cal Od5f4]} 31. Na5 {[%emt 0:01:06]} (31. Rxe6 $2 {loses.} Nxc3 32. Ne5 (32. Rxc3 $2 {too greedy.} Rxd4+ 33. Kc2 Rxc3+ 34. bxc3 Rxc4 $19) 32... Nb5+ 33. Kc4 Rc7+ 34. Kxb3 Nxd4+ 35. Ka2 Nxc2 $19) (31. Nd2 {simplifies} Nxc3 32. Nxb3 Nxe2 33. Kxe2 Kf7 34. Ke3) 31... Rb6 {[%emt 0:00:08]} (31... Nxc3 $16 32. Nxb3 Nxe2 33. Kxe2 (33. Rxe2 e5 $16) 33... Kf7) 32. Nxd5 $18 {[%emt 0:00:12]} Rxd5 {[%emt 0:00:04]} (32... exd5 $142 33. Rc8+ Bf8) 33. Rc8+ {[%emt 0:00:02]} Kf7 {[%emt 0:00:08]} 34. Rc7+ {[%emt 0:00:26]} Kf6 $2 {[%emt 0:00:42]} (34... Kf8) 35. Nc6 {[%emt 0:00:41] And now Ne5 would win. White is clearly winning.} Bh6 {[%emt 0:01:56]} (35... Kg5 $142 36. Rxe6 Kf5) 36. Ne5 {[%emt 0:00:10]} Ra6 {[%emt 0:01:34]} 37. h4 {[%emt 0:00:32] Weighted Error Value: White=0.17 (very precise) /Black=0.32} 1-0